Workbook

Sheet 使い方
A1: ●内容把握がし易いよう、ワークブック内 各種要素の「年度予算」は省いて表現しております
B2: 【 前 提 】
B3: ・ | C3: 査定書にインプットされた要求額を、実施計画明細書に転記するマクロツールです。
B4: ・ | C4: ご使用に伴う損害に関しては、いかなる責任も負いかねます。作成されたデータは使用者の責任に
C5: おいてよく確認してご利用ください。
A6: 70 | B6: ・ | C6: MicrosoftExcel 2007・2010・2013で動作確認済です。
C8: 可・・・このブックの名称変更や複製、査定書シートの名称変更や追加、各シートの保護（インプット欄以外）、
C9: 「使い方」シートの削除
C10: 不可・・・査定書以外のシートの名称変更、全てのシートのレイアウト変更、Bookの保護
C11: （値入力欄の行追加については一定数可：初期設定の注記をご覧ください）
B13: 【 初期設定について 】
B14: １． | C14: 「メイン」シート上の、査定書 項目リストを整備し、節名称には該当査定書シートへのリンクを
C15: 設定します。
C16: ※「１．収益的収入および支出」と「2．資本的収入および支出」の文字を検索して、転記元起点を判断しますので、
C17: この題目は変更不可です。
C18: ※節名称の設定があっても、査定書へのリンクが設定されていないと無視しますので必ずリンク設定してください。
C19: ※査定項目リストは200行めまで行追加 可です。
C20: ※各査定書は50行めまで行追加 可です。
B21: ２． | C21: 査定書 項目リストの通りに、 転記先の実施計画明細書２種の、款、項、目、節を設定してください。
C22: ※度別査定書項目リストと、実施計画明細書の各要素名称が完全一致している必要があります。
B23: ３． | C23: 「実施計画明細書_収益的収入及び支出」シートと「実施計画明細書_資本的収入及び支出」シートは
C24: 非表示にします。（シート名称のタブを右クリック→非表示）
B25: ４． | C25: 上記初期設定完了後は、「メイン」シート記載の手順に沿って作業してください。
C26: エラー表
C27: エラー内容 | D27: 対応方法
C28: 年度予算査定書 項目リストに「１．収益的収入および支出」の掲載がありません。確認してください。 | D28: 「メイン」シート上の査定書項目リスト上で、「１．収益的収入および支出」の文字を検索して、項目リストの起点を判断しますので、表の起点は必ずこの文字列にしてください。
C29: 年度予算査定書 項目リストに「２．資本的収入および支出」の掲載がありません。確認してください。 | D29: 「メイン」シート上の査定書項目リスト上で、「２．資本的収入および支出」の文字を検索して、明細書種別切り替えの起点を判断しますので、必ずこの文字列を掲載してください。
C30: [款名称]ー[項名称]ー[目名称]ー[節名称]のリンク先が[目名称]シートではありません。このBookの配布者に確認してください。 | D30: 「メイン」シート上の査定書項目リスト上の目名称とリンク先査定書に設定されている目名称が違っている為にエラーとなっています。リンク元とリンク先の目名称が一致するよう修正してください。
C31: [款名称]ー[項名称]ー[目名称]ー[節名称]のリンク先の書式が不正です。このBookの配布者に確認してください。 | D31: 査定書の要求額を取得する際は、「要求額」の文字列を検索して、表の起点を判断しますので、必ずこの文字列を設定してください。
C32: [款名称]ー[項名称]ー[目名称]ー[節名称]の転記先の書式が不正です。このBookの配布者に確認してください。 | D32: 要求額 転記先の実施計画明細書のシート上に、該当の款、項、目、節が見つからないときのエラーです。「メイン」シート上の 査定書項目リストと、実施計画明細書の各要素名称を一致させてください
C33: 要求書ページ計と転記実行された金額とに差がある節があります。 E列「NG」を確認してください | D33: 査定書の要求額を取得する際は、リンク元の査定書項目リストの節名称と、各査定書の節名称が完全一致しているものを拾いますので、最終処理で検算をしています。表示された「検算」シートのE列が「NG」となってる款－項－目の査定書の節名称を査定書項目リストと一致させてください。
C34: 上記以外の№付きエラー | D34: 想定外のOS由来のエラーです。info@keirihelp.comまでお問い合わせください。

Sheet メイン
B1: 作業手順
B2: 1. | C2: 年度予算査定書登録
C3: 下の年度予算査定書 項目リスト、H列の節名称をクリックすると、該当査定書に飛びますので、査定数値を登録します。 | L3: =COLUMN() -> 12
C4: ※各査定書シート右上のメインに戻るをクリックすると、このシートに戻れます
B6: 2. | C6: 明細書出力
C7: 下の黄色い枠に「年度」と「市町村名」を入力後、「予算実施計画明細出力」ボタンをクリックすると、このBookと同じ場所に
C8: 「予算実施計画明細書.xlsx」が出力されます。
C9: ※下記年度予算査定書項目リストの節名称と、各査定書の節名称が完全一致していないと数値を拾いません。ご注意ください。
C11: 年度： | D11: 平成〇〇年 | E11: ※入力例（平成29年）和暦
C12: 市町村名： | D12: 〇〇市 | E12: ※入力（横浜市）
C17: ▼年度予算査定書 項目リスト
C18: １．収益的収入および支出
D19: 収入 | E19: 款 | F19: 項 | G19: 目 | H19: 節
E20: 下水道事業収益
F21: 営業収益
G22: 下水道使用料
H23: 下水道使用料
G24: 他会計負担金
H25: 雨水処理負担金
G26: その他の営業収益
H27: 手数料
H28: 雑収益
F29: 営業外収益
G30: 受取利息及び配当金
H31: 預金利息
G32: 雑収益
H33: その他雑収益
G34: 他会計補助金
H35: 一般会計補助金
G36: 長期前受金戻入
H37: 長期前受金戻入
F38: 特別利益
G39: 過年度損益修正益
H40: 過年度損益修正益
G41: その他特別利益
H42: その他特別利益
D43: 支出 | E43: 款 | F43: 項 | G43: 目 | H43: 節
E44: 下水道事業費用
F45: 営業費用
G46: 汚水管きょ費
H47: 委託費
H48: 工事請負費
H49: 修繕費
H50: 材料費
G51: 雨水管きょ費
H52: 旅費
H53: 備消耗品費
H54: 燃料費
H55: 委託料
H56: 通信運搬費
G57: 汚水ポンプ場費
H58: 備消耗品費
H59: 燃料費
H60: 光熱水費
H61: 通信運搬費
H62: 委託料
H63: 修繕費
H64: 保険料
G65: 雨水ポンプ場費
H66: 委託料
H67: 賃借料
H68: 修繕費
G69: 流域下水道維持管理負担金
H70: 流域下水道維持管理負担金
G71: 業務費
H72: 報償費
H73: 印刷製本費
H74: 通信運搬費
H75: 委託料
H76: 補償、補てん及び賠償金
H77: 負担金
H78: 補助金
H79: 貸付金
H80: 雑費
G81: 総係費
H82: 給料
H83: 職員手当等
H84: 法定福利費
H85: 退職給付費
H86: 旅費
H87: 被服費
H88: 備消耗品費
H89: 燃料費
H90: 印刷製本費
H91: 委託料
H92: 手数料
H93: 賃借料
H94: 修繕費
H95: 公課費
H96: 負担金
H97: 賞与引当金繰入額
H98: 貸倒引当金繰入額
H99: 退職給付引当金繰入額
G100: 減価償却費
H101: 有形固定資産減価償却費
H102: 無形固定資産減価償却費
F103: 営業外費用
G104: 支払利息
H105: 企業債利息
G106: 消費税及び地方消費税
H107: 消費税及び地方消費税
F108: 特別損失
G109: 支払利息
H110: 企業債利息
F111: 予備費
G112: 予備費
H113: 予備費
C114: ２．資本的収入および支出
D115: 収入 | E115: 款 | F115: 項 | G115: 目 | H115: 節
E116: 資本的収入
F117: 企業債
G118: 企業債
H119: 企業債
F120: 出資金
G121: 他会計出資金
H122: 一般会計出資金
F123: 負担金
G124: 受益者負担金
H125: 受益者負担金
F126: 補助金
G127: 国庫補助金
H128: 国庫補助金
G129: 他会計補助金
H130: 一般会計補助金
D131: 支出 | E131: 款 | F131: 項 | G131: 目 | H131: 節
E132: 資本的支出
F133: 建設改良費
G134: 汚水管きょ建設費
H135: 給料
H136: 職員手当等
H137: 委託料
H138: 工事請負費
H139: 補償、補てん及び
G140: 汚水ポンプ場建設費
H141: 工事請負費
G142: 雨水ポンプ場建設費
H143: 工事請負費
G144: 流域下水道建設負担金
H145: 流域下水道建設負担金
F146: 企業債償還金
G147: 企業債償還金
H148: 企業債償還金

Sheet 検算 (hidden)
A1: 款－項－目 | B1: 節 | C1: 要求額計 | D1: 要求書ページ計 | E1: 判定
A2: 下水道事業収益－営業収益ー下水道使用料 | B2: 下水道使用料 | C2: 2250000 | D2: 2250000 | E2: =IF(SUMIF(A:D,A2,C:C)-D2<>0,"NG","") -> 
A3: 下水道事業収益－営業収益ー他会計負担金 | B3: 雨水処理負担金 | C3: 75000 | D3: 75000
A4: 下水道事業収益－営業収益ーその他の営業収益 | B4: 手数料 | C4: 920 | D4: 921
A5: 下水道事業収益－営業収益ーその他の営業収益 | B5: 雑収益 | C5: 1 | D5: 921
A6: 下水道事業収益－営業外収益ー受取利息及び配当金 | B6: 預金利息 | C6: 1 | D6: 1
A7: 下水道事業収益－営業外収益ー雑収益 | B7: その他雑収益 | C7: 6000 | D7: 6000
A8: 下水道事業収益－営業外収益ー他会計補助金 | B8: 一般会計補助金 | C8: 1470000 | D8: 1470000
A9: 下水道事業収益－営業外収益ー長期前受金戻入 | B9: 長期前受金戻入 | C9: 897335 | D9: 897335
A10: 下水道事業収益－特別利益ー過年度損益修正益 | B10: 過年度損益修正益 | C10: 1 | D10: 1
A11: 下水道事業収益－特別利益ーその他特別利益 | B11: その他特別利益 | C11: 1 | D11: 1
A12: 下水道事業費用－営業費用ー汚水管きょ費 | B12: 委託費 | C12: 35000 | D12: 73100
A13: 下水道事業費用－営業費用ー汚水管きょ費 | B13: 工事請負費 | C13: 23000 | D13: 73100
A14: 下水道事業費用－営業費用ー汚水管きょ費 | B14: 修繕費 | C14: 15000 | D14: 73100
A15: 下水道事業費用－営業費用ー汚水管きょ費 | B15: 材料費 | C15: 100 | D15: 73100
A16: 下水道事業費用－営業費用ー雨水管きょ費 | B16: 旅費 | C16: 10 | D16: 21780
A17: 下水道事業費用－営業費用ー雨水管きょ費 | B17: 備消耗品費 | C17: 20 | D17: 21780
A18: 下水道事業費用－営業費用ー雨水管きょ費 | B18: 燃料費 | C18: 350 | D18: 21780
A19: 下水道事業費用－営業費用ー雨水管きょ費 | B19: 委託料 | C19: 20000 | D19: 21780
A20: 下水道事業費用－営業費用ー雨水管きょ費 | B20: 通信運搬費 | C20: 1400 | D20: 21780
A21: 下水道事業費用－営業費用ー汚水ポンプ場費 | B21: 備消耗品費 | C21: 20 | D21: 48690
A22: 下水道事業費用－営業費用ー汚水ポンプ場費 | B22: 燃料費 | C22: 120 | D22: 48690
A23: 下水道事業費用－営業費用ー汚水ポンプ場費 | B23: 光熱水費 | C23: 13000 | D23: 48690
A24: 下水道事業費用－営業費用ー汚水ポンプ場費 | B24: 通信運搬費 | C24: 500 | D24: 48690
A25: 下水道事業費用－営業費用ー汚水ポンプ場費 | B25: 委託料 | C25: 15000 | D25: 48690
A26: 下水道事業費用－営業費用ー汚水ポンプ場費 | B26: 修繕費 | C26: 20000 | D26: 48690
A27: 下水道事業費用－営業費用ー汚水ポンプ場費 | B27: 保険料 | C27: 50 | D27: 48690
A28: 下水道事業費用－営業費用ー雨水ポンプ場費 | B28: 委託料 | C28: 8000 | D28: 11260
A29: 下水道事業費用－営業費用ー雨水ポンプ場費 | B29: 賃借料 | C29: 60 | D29: 11260
A30: 下水道事業費用－営業費用ー雨水ポンプ場費 | B30: 修繕費 | C30: 3200 | D30: 11260
A31: 下水道事業費用－営業費用ー流域下水道維持管理負担金 | B31: 流域下水道維持管理負担金 | C31: 800000 | D31: 800000
A32: 下水道事業費用－営業費用ー業務費 | B32: 報償費 | C32: 1500 | D32: 160280
A33: 下水道事業費用－営業費用ー業務費 | B33: 印刷製本費 | C33: 150 | D33: 160280
A34: 下水道事業費用－営業費用ー業務費 | B34: 通信運搬費 | C34: 300 | D34: 160280 | E34: =IF(SUMIF(A:D,A34,C:C)-D34<>0,"NG","") -> 
A35: 下水道事業費用－営業費用ー業務費 | B35: 委託料 | C35: 150000 | D35: 160280
A36: 下水道事業費用－営業費用ー業務費 | B36: 補償、補てん及び賠償金 | C36: 10 | D36: 160280
A37: 下水道事業費用－営業費用ー業務費 | B37: 負担金 | C37: 2000 | D37: 160280
A38: 下水道事業費用－営業費用ー業務費 | B38: 補助金 | C38: 120 | D38: 160280
A39: 下水道事業費用－営業費用ー業務費 | B39: 貸付金 | C39: 6000 | D39: 160280
A40: 下水道事業費用－営業費用ー業務費 | B40: 雑費 | C40: 200 | D40: 160280
A41: 下水道事業費用－営業費用ー総係費 | B41: 給料 | C41: 40000 | D41: 133213
A42: 下水道事業費用－営業費用ー総係費 | B42: 職員手当等 | C42: 15000 | D42: 133213
A43: 下水道事業費用－営業費用ー総係費 | B43: 法定福利費 | C43: 10000 | D43: 133213
A44: 下水道事業費用－営業費用ー総係費 | B44: 退職給付費 | C44: 500 | D44: 133213
A45: 下水道事業費用－営業費用ー総係費 | B45: 旅費 | C45: 40 | D45: 133213
A46: 下水道事業費用－営業費用ー総係費 | B46: 被服費 | C46: 30 | D46: 133213
A47: 下水道事業費用－営業費用ー総係費 | B47: 備消耗品費 | C47: 1900 | D47: 133213
A48: 下水道事業費用－営業費用ー総係費 | B48: 燃料費 | C48: 200 | D48: 133213
A49: 下水道事業費用－営業費用ー総係費 | B49: 印刷製本費 | C49: 600 | D49: 133213
A50: 下水道事業費用－営業費用ー総係費 | B50: 委託料 | C50: 50000 | D50: 133213
A51: 下水道事業費用－営業費用ー総係費 | B51: 手数料 | C51: 30 | D51: 133213
A52: 下水道事業費用－営業費用ー総係費 | B52: 賃借料 | C52: 900 | D52: 133213
A53: 下水道事業費用－営業費用ー総係費 | B53: 修繕費 | C53: 300 | D53: 133213
A54: 下水道事業費用－営業費用ー総係費 | B54: 公課費 | C54: 30 | D54: 133213
A55: 下水道事業費用－営業費用ー総係費 | B55: 負担金 | C55: 6000 | D55: 133213
A56: 下水道事業費用－営業費用ー総係費 | B56: 賞与引当金繰入額 | C56: 5000 | D56: 133213
A57: 下水道事業費用－営業費用ー総係費 | B57: 貸倒引当金繰入額 | C57: 683 | D57: 133213
A58: 下水道事業費用－営業費用ー総係費 | B58: 退職給付引当金繰入額 | C58: 2000 | D58: 133213
A59: 下水道事業費用－営業費用ー減価償却費 | B59: 有形固定資産減価償却費 | C59: 2017784 | D59: 2213908
A60: 下水道事業費用－営業費用ー減価償却費 | B60: 無形固定資産減価償却費 | C60: 196124 | D60: 2213908
A61: 下水道事業費用－営業外費用ー支払利息 | B61: 企業債利息 | C61: 1080000 | D61: 1080000
A62: 下水道事業費用－営業外費用ー消費税及び地方消費税 | B62: 消費税及び地方消費税 | C62: 70000 | D62: 70000
A63: 下水道事業費用－特別損失ー支払利息 | B63: 企業債利息 | C63: 5000 | D63: 5000
A64: 下水道事業費用－予備費ー予備費 | B64: 予備費 | C64: 1000 | D64: 1000
A65: 資本的収入－企業債ー企業債 | B65: 企業債 | C65: 1105000 | D65: 1105000
A66: 資本的収入－出資金ー他会計出資金 | B66: 一般会計出資金 | C66: 0 | D66: 0 | E66: =IF(SUMIF(A:D,A66,C:C)-D66<>0,"NG","") -> 
A67: 資本的収入－負担金ー受益者負担金 | B67: 受益者負担金 | C67: 56000 | D67: 56000
A68: 資本的収入－補助金ー国庫補助金 | B68: 国庫補助金 | C68: 300000 | D68: 300000
A69: 資本的収入－補助金ー他会計補助金 | B69: 一般会計補助金 | C69: 570000 | D69: 570000
A70: 資本的支出－建設改良費ー汚水管きょ建設費 | B70: 給料 | C70: 17000 | D70: 785000
A71: 資本的支出－建設改良費ー汚水管きょ建設費 | B71: 職員手当等 | C71: 9000 | D71: 785000
A72: 資本的支出－建設改良費ー汚水管きょ建設費 | B72: 委託料 | C72: 150000 | D72: 785000
A73: 資本的支出－建設改良費ー汚水管きょ建設費 | B73: 工事請負費 | C73: 600000 | D73: 785000
A74: 資本的支出－建設改良費ー汚水管きょ建設費 | B74: 補償、補てん及び | C74: 9000 | D74: 785000
A75: 資本的支出－建設改良費ー汚水ポンプ場建設費 | B75: 工事請負費 | C75: 15000 | D75: 15000
A76: 資本的支出－建設改良費ー雨水ポンプ場建設費 | B76: 工事請負費 | C76: 15000 | D76: 15000
A77: 資本的支出－建設改良費ー流域下水道建設負担金 | B77: 流域下水道建設負担金 | C77: 150000 | D77: 150000
A78: 資本的支出－企業債償還金ー企業債償還金 | B78: 企業債償還金 | C78: 2630000 | D78: 2630000
E98: =IF(SUMIF(A:D,A98,C:C)-D98<>0,"NG","") -> 
E130: =IF(SUMIF(A:D,A130,C:C)-D130<>0,"NG","") -> 
E162: =IF(SUMIF(A:D,A162,C:C)-D162<>0,"NG","") -> 
E194: =IF(SUMIF(A:D,A194,C:C)-D194<>0,"NG","") -> 
E201: =IF(SUMIF(A:D,A201,C:C)-D201<>0,"NG","") -> 

Sheet 予算実施計画明細書_収益的収入及び支出
B1: 平成〇〇年度〇〇市下水道事業予算実施計画明細書
B2: 1 収益的収入及び支出
B3: 収 入 | G3: （単位：千円）
B4: 款 | C4: 項 | D4: 目 | E4: 節 | G4: 備 考 | I4: 課税区分
B5: 下水道事業収益 | F5: =F6+F14+F23 -> 4699259
C6: 営業収益 | F6: =F7+F9+F11 -> 2325921
D7: 下水道使用料 | F7: =F8 -> 2250000
E8: 下水道使用料 | F8: 2250000 | I8: 課
D9: 他会計負担金 | F9: =F10 -> 75000
E10: 雨水処理負担金 | F10: 75000 | I10: 不
D11: その他の営業収益 | F11: =SUM(F12:F13) -> 921
E12: 手数料 | F12: 920 | I12: 非
E13: 雑収益 | F13: 1 | I13: 非
C14: 営業外収益 | F14: =F15+F17+F19+F21 -> 2373336
D15: 受取利息及び配当金 | F15: =F16 -> 1
E16: 預金利息 | F16: 1 | I16: 非
D17: 雑収益 | F17: =F18 -> 6000
E18: その他雑収益 | F18: 6000 | I18: 不
D19: 他会計補助金 | F19: =F20 -> 1470000
E20: 一般会計補助金 | F20: 1470000 | I20: 不
D21: 長期前受金戻入 | F21: =F22 -> 897335
E22: 長期前受金戻入 | F22: 897335 | I22: 不
C23: 特別利益 | F23: =SUM(F24,F26) -> 2
D24: 過年度損益修正益 | F24: =F25 -> 1
E25: 過年度損益修正益 | F25: 1 | I25: 非
D26: その他特別利益 | F26: =F27 -> 1
E27: その他特別利益 | F27: 1 | I27: 非
B29: 支 出 | G29: （単位：千円）
B30: 款 | C30: 項 | D30: 目 | E30: 節 | G30: 備 考 | I30: 課税区分
B31: 下水道事業費用 | F31: =SUM(F32,F90,F95,F98) -> 4618231
C32: 営業費用 | F32: =SUM(F33,F38,F44,F52,F56,F58,F68,F87) -> 3462231
D33: 汚水管きょ費 | F33: =SUM(F34:F37) -> 73100
E34: 委託費 | F34: 35000 | I34: 課
E35: 工事請負費 | F35: 23000 | I35: 課
E36: 修繕費 | F36: 15000 | I36: 課
E37: 材料費 | F37: 100 | I37: 課
D38: 雨水管きょ費 | F38: =SUM(F39:F43) -> 21780
E39: 旅費 | F39: 10 | I39: 課
E40: 備消耗品費 | F40: 20 | I40: 課
E41: 燃料費 | F41: 350 | I41: 課
E42: 委託料 | F42: 20000 | I42: 課
E43: 通信運搬費 | F43: 1400 | I43: 課
D44: 汚水ポンプ場費 | F44: =SUM(F45:F51) -> 48690
E45: 備消耗品費 | F45: 20 | I45: 課
E46: 燃料費 | F46: 120 | I46: 課
E47: 光熱水費 | F47: 13000 | I47: 課
E48: 通信運搬費 | F48: 500 | I48: 課
E49: 委託料 | F49: 15000 | I49: 課
E50: 修繕費 | F50: 20000 | I50: 課
E51: 保険料 | F51: 50 | I51: 非
D52: 雨水ポンプ場費 | F52: =SUM(F53:F55) -> 11260
E53: 委託料 | F53: 8000 | I53: 課
E54: 賃借料 | F54: 60 | I54: 非
E55: 修繕費 | F55: 3200 | I55: 課
D56: 流域下水道維持管理負担金 | F56: =SUM(F57:F57) -> 800000
E57: 流域下水道維持管理負担金 | F57: 800000 | I57: 課
D58: 業務費 | F58: =SUM(F59:F67) -> 160280
E59: 報償費 | F59: 1500 | I59: 不
E60: 印刷製本費 | F60: 150 | I60: 課
E61: 通信運搬費 | F61: 300 | I61: 課
E62: 委託料 | F62: 150000 | I62: 課
E63: 補償、補てん及び賠償金 | F63: 10 | I63: 不
E64: 負担金 | F64: 2000 | I64: 課
E65: 補助金 | F65: 120 | I65: 不
E66: 貸付金 | F66: 6000 | I66: 不
E67: 雑費 | F67: 200 | I67: 課
D68: 総係費 | F68: =SUM(F69:F86) -> 133213
E69: 給料 | F69: 40000 | I69: 不
E70: 職員手当等 | F70: 15000 | I70: 不
E71: 法定福利費 | F71: 10000 | I71: 非
E72: 退職給付費 | F72: 500 | I72: 不
E73: 旅費 | F73: 40 | I73: 課
E74: 被服費 | F74: 30 | I74: 課
E75: 備消耗品費 | F75: 1900 | I75: 課
E76: 燃料費 | F76: 200 | I76: 課
E77: 印刷製本費 | F77: 600 | I77: 課
E78: 委託料 | F78: 50000 | I78: 課
E79: 手数料 | F79: 30 | I79: 不
E80: 賃借料 | F80: 900 | I80: 課
E81: 修繕費 | F81: 300 | I81: 課
E82: 公課費 | F82: 30 | I82: 不
E83: 負担金 | F83: 6000 | I83: 課
E84: 賞与引当金繰入額 | F84: 5000 | I84: 不
E85: 貸倒引当金繰入額 | F85: 683 | I85: 不
E86: 退職給付引当金繰入額 | F86: 2000 | I86: 不
D87: 減価償却費 | F87: =SUM(F88:F89) -> 2213908
E88: 有形固定資産減価償却費 | F88: 2017784 | I88: 不
E89: 無形固定資産減価償却費 | F89: 196124 | I89: 不
C90: 営業外費用 | F90: =SUM(F93,F91) -> 1150000
D91: 支払利息 | F91: =F92 -> 1080000
E92: 企業債利息 | F92: 1080000 | I92: 非
D93: 消費税及び地方消費税 | F93: =F94 -> 70000
E94: 消費税及び地方消費税 | F94: 70000 | I94: 不
C95: 特別損失 | F95: =F97 -> 5000
D96: 支払利息 | F96: =F97 -> 5000
E97: 企業債利息 | F97: 5000 | I97: 不
C98: 予備費 | F98: =F99 -> 1000
D99: 予備費 | F99: =F100 -> 1000
E100: 予備費 | F100: 1000 | I100: 非

Sheet 予算実施計画明細書_資本的収入及び支出
B1: 平成〇〇年度〇〇市下水道事業予算実施計画明細書
B2: 2 資本的収入及び支出
B3: 収 入 | G3: （単位：千円）
B4: 款 | C4: 項 | D4: 目 | E4: 節 | G4: 備 考 | I4: 課税区分
B5: 資本的収入 | F5: =SUM(F6,F9,F12,F15) -> 2031000
C6: 企業債 | F6: =F8 -> 1105000
D7: 企業債 | F7: =F8 -> 1105000
E8: 企業債 | F8: 1105000 | I8: 不
C9: 出資金 | F9: =F11 -> 0
D10: 他会計出資金 | F10: =F11 -> 0
E11: 一般会計出資金 | F11: 0 | I11: 不
C12: 負担金 | F12: =F14 -> 56000
D13: 受益者負担金 | F13: =F14 -> 56000
E14: 受益者負担金 | F14: 56000 | I14: 不
C15: 補助金 | F15: =SUM(F16,F18) -> 870000
D16: 国庫補助金 | F16: =F17 -> 300000
E17: 国庫補助金 | F17: 300000 | I17: 不
D18: 他会計補助金 | F18: =F19 -> 570000
E19: 一般会計補助金 | F19: 570000 | I19: 不
B21: 支 出 | G21: （単位：千円）
B22: 款 | C22: 項 | D22: 目 | E22: 節 | G22: 備 考 | I22: 課税区分
B23: 資本的支出 | F23: =SUM(F24,F37) -> 3595000
C24: 建設改良費 | F24: =SUM(F25,F31,F33,F35) -> 965000
D25: 汚水管きょ建設費 | F25: =SUM(F26:F30) -> 785000
E26: 給料 | F26: 17000 | I26: 不
E27: 職員手当等 | F27: 9000 | I27: 不
E28: 委託料 | F28: 150000 | I28: 課
E29: 工事請負費 | F29: 600000 | I29: 課
E30: 補償、補てん及び | F30: 9000 | I30: 不
D31: 汚水ポンプ場建設費 | F31: =F32 -> 15000
E32: 工事請負費 | F32: 15000 | I32: 課
D33: 雨水ポンプ場建設費 | F33: =F34 -> 15000
E34: 工事請負費 | F34: 15000 | I34: 課
D35: 流域下水道建設負担金 | F35: =SUM(F36) -> 150000
E36: 流域下水道建設負担金 | F36: 150000 | I36: 課
C37: 企業債償還金 | F37: =F39 -> 2630000
D38: 企業債償還金 | F38: =F39 -> 2630000
E39: 企業債償還金 | F39: 2630000 | I39: 不

Sheet 年度予算査定書（下水道使用料）
B1: 年度予算査定書 | S1: メインに戻る
M2: 作成日時：
B3: 収入予算の部 | M3: 作成者:
C4: コード | D4: 名称 | H4: 査定事由
B5: 所属
B6: 会計
B7: 款 | D7: 下水道事業収益
B8: 項 | D8: 営業収益
B9: 目 | D9: 下水道使用料
C11: ※必須 | I11: ※必須 | J11: ※必須 | M11: ※必須 | N11: ※必須 | O11: ※必須
B12: 番号 | C12: 節 | D12: 細節 | E12: 名称 | I12: 要求額 | J12: 審査額 | K12: 前年度 | L12: 前々年度 | M12: 款 | N12: 項 | O12: 目 | P12: 事業
A13: 1 | C13: 下水道使用料 | I13: 2250000 | J13: 2250000 | M13: 下水道事業収益 | N13: 営業収益 | O13: 下水道使用料
A14: 2
A15: 3
A16: 4
A17: 5
A18: 6
A19: 7
A20: 8
A21: 9
A22: 10
A23: 11
A24: 12
A25: 13
A26: 14
A27: 15
A28: 16
A29: 17
A30: 18
A31: 19
A32: 20

Sheet 年度予算査定書（他会計負担金）
B1: 年度予算査定書 | S1: メインに戻る
M2: 作成日時：
B3: 収入予算の部 | M3: 作成者:
C4: コード | D4: 名称 | H4: 査定事由
B5: 所属
B6: 会計
B7: 款 | D7: 下水道事業収益
B8: 項 | D8: 営業収益
B9: 目 | D9: 他会計負担金
C11: ※必須 | I11: ※必須 | J11: ※必須 | M11: ※必須 | N11: ※必須 | O11: ※必須
B12: 番号 | C12: 節 | D12: 細節 | E12: 名称 | I12: 要求額 | J12: 審査額 | K12: 前年度 | L12: 前々年度 | M12: 款 | N12: 項 | O12: 目 | P12: 事業
A13: 1 | C13: 雨水処理負担金 | I13: 75000 | J13: 75000 | M13: 下水道事業収益 | N13: 営業収益 | O13: 他会計負担金
A14: 2
A15: 3
A16: 4
A17: 5
A18: 6
A19: 7
A20: 8
A21: 9
A22: 10
A23: 11
A24: 12
A25: 13
A26: 14
A27: 15
A28: 16
A29: 17
A30: 18
A31: 19
A32: 20

Sheet 年度予算査定書（その他の営業収益）
B1: 年度予算査定書 | S1: メインに戻る
M2: 作成日時：
B3: 収入予算の部 | M3: 作成者:
C4: コード | D4: 名称 | H4: 査定事由
B5: 所属
B6: 会計
B7: 款 | D7: 下水道事業収益
B8: 項 | D8: 営業収益
B9: 目 | D9: その他の営業収益
C11: ※必須 | I11: ※必須 | J11: ※必須 | M11: ※必須 | N11: ※必須 | O11: ※必須
B12: 番号 | C12: 節 | D12: 細節 | E12: 名称 | I12: 要求額 | J12: 審査額 | K12: 前年度 | L12: 前々年度 | M12: 款 | N12: 項 | O12: 目 | P12: 事業
A13: 1 | C13: 手数料 | I13: 920 | J13: 920 | M13: 下水道事業収益 | N13: 営業収益 | O13: その他の営業収益
A14: 2 | C14: 雑収益 | I14: 1 | J14: 1 | M14: 下水道事業収益 | N14: 営業収益 | O14: その他の営業収益
A15: 3
A16: 4
A17: 5
A18: 6
A19: 7
A20: 8
A21: 9
A22: 10
A23: 11
A24: 12
A25: 13
A26: 14
A27: 15
A28: 16
A29: 17
A30: 18
A31: 19
A32: 20

Sheet 年度予算査定書（受取利息及び配当金）
B1: 年度予算査定書 | S1: メインに戻る
M2: 作成日時：
B3: 収入予算の部 | M3: 作成者:
C4: コード | D4: 名称 | H4: 査定事由
B5: 所属
B6: 会計
B7: 款 | D7: 下水道事業収益
B8: 項 | D8: 営業外収益
B9: 目 | D9: 受取利息及び配当金
C11: ※必須 | I11: ※必須 | J11: ※必須 | M11: ※必須 | N11: ※必須 | O11: ※必須
B12: 番号 | C12: 節 | D12: 細節 | E12: 名称 | I12: 要求額 | J12: 審査額 | K12: 前年度 | L12: 前々年度 | M12: 款 | N12: 項 | O12: 目 | P12: 事業
A13: 1 | C13: 預金利息 | I13: 1 | J13: 1 | M13: 下水道事業収益 | N13: 営業外収益 | O13: 受取利息及び配当金
A14: 2
A15: 3
A16: 4
A17: 5
A18: 6
A19: 7
A20: 8
A21: 9
A22: 10
A23: 11
A24: 12
A25: 13
A26: 14
A27: 15
A28: 16
A29: 17
A30: 18
A31: 19
A32: 20

Sheet 年度予算査定書（雑収益）
B1: 年度予算査定書 | S1: メインに戻る
M2: 作成日時：
B3: 収入予算の部 | M3: 作成者:
C4: コード | D4: 名称 | H4: 査定事由
B5: 所属
B6: 会計
B7: 款 | D7: 下水道事業収益
B8: 項 | D8: 営業外収益
B9: 目 | D9: 雑収益
C11: ※必須 | I11: ※必須 | J11: ※必須 | M11: ※必須 | N11: ※必須 | O11: ※必須
B12: 番号 | C12: 節 | D12: 細節 | E12: 名称 | I12: 要求額 | J12: 審査額 | K12: 前年度 | L12: 前々年度 | M12: 款 | N12: 項 | O12: 目 | P12: 事業
A13: 1 | C13: その他雑収益 | I13: 6000 | J13: 6000 | M13: 下水道事業収益 | N13: 営業外収益 | O13: 雑収益
A14: 2
A15: 3
A16: 4
A17: 5
A18: 6
A19: 7
A20: 8
A21: 9
A22: 10
A23: 11
A24: 12
A25: 13
A26: 14
A27: 15
A28: 16
A29: 17
A30: 18
A31: 19
A32: 20

Sheet 年度予算査定書（他会計補助金）
B1: 年度予算査定書 | S1: メインに戻る
M2: 作成日時：
B3: 収入予算の部 | M3: 作成者:
C4: コード | D4: 名称 | H4: 査定事由
B5: 所属
B6: 会計
B7: 款 | D7: 下水道事業収益
B8: 項 | D8: 営業外収益
B9: 目 | D9: 他会計補助金
C11: ※必須 | I11: ※必須 | J11: ※必須 | M11: ※必須 | N11: ※必須 | O11: ※必須
B12: 番号 | C12: 節 | D12: 細節 | E12: 名称 | I12: 要求額 | J12: 審査額 | K12: 前年度 | L12: 前々年度 | M12: 款 | N12: 項 | O12: 目 | P12: 事業
A13: 1 | C13: 一般会計補助金 | I13: 1470000 | J13: 1470000 | M13: 下水道事業収益 | N13: 営業外収益 | O13: 他会計補助金
A14: 2
A15: 3
A16: 4
A17: 5
A18: 6
A19: 7
A20: 8
A21: 9
A22: 10
A23: 11
A24: 12
A25: 13
A26: 14
A27: 15
A28: 16
A29: 17
A30: 18
A31: 19
A32: 20

Sheet 年度予算査定書（長期前受金戻入）
B1: 年度予算査定書 | S1: メインに戻る
M2: 作成日時：
B3: 収入予算の部 | M3: 作成者:
C4: コード | D4: 名称 | H4: 査定事由
B5: 所属
B6: 会計
B7: 款 | D7: 下水道事業収益
B8: 項 | D8: 営業外収益
B9: 目 | D9: 長期前受金戻入
C11: ※必須 | I11: ※必須 | J11: ※必須 | M11: ※必須 | N11: ※必須 | O11: ※必須
B12: 番号 | C12: 節 | D12: 細節 | E12: 名称 | I12: 要求額 | J12: 審査額 | K12: 前年度 | L12: 前々年度 | M12: 款 | N12: 項 | O12: 目 | P12: 事業
A13: 1 | C13: 長期前受金戻入 | I13: 897335 | J13: 897335 | M13: 下水道事業収益 | N13: 営業外収益 | O13: 長期前受金戻入
A14: 2
A15: 3
A16: 4
A17: 5
A18: 6
A19: 7
A20: 8
A21: 9
A22: 10
A23: 11
A24: 12
A25: 13
A26: 14
A27: 15
A28: 16
A29: 17
A30: 18
A31: 19
A32: 20

Sheet 年度予算査定書（過年度損益修正益）
B1: 年度予算査定書 | S1: メインに戻る
M2: 作成日時：
B3: 収入予算の部 | M3: 作成者:
C4: コード | D4: 名称 | H4: 査定事由
B5: 所属
B6: 会計
B7: 款 | D7: 下水道事業収益
B8: 項 | D8: 特別利益
B9: 目 | D9: 過年度損益修正益
C11: ※必須 | I11: ※必須 | J11: ※必須 | M11: ※必須 | N11: ※必須 | O11: ※必須
B12: 番号 | C12: 節 | D12: 細節 | E12: 名称 | I12: 要求額 | J12: 審査額 | K12: 前年度 | L12: 前々年度 | M12: 款 | N12: 項 | O12: 目 | P12: 事業
A13: 1 | C13: 過年度損益修正益 | I13: 1 | J13: 1 | M13: 下水道事業収益 | N13: 特別利益 | O13: 過年度損益修正益
A14: 2
A15: 3
A16: 4
A17: 5
A18: 6
A19: 7
A20: 8
A21: 9
A22: 10
A23: 11
A24: 12
A25: 13
A26: 14
A27: 15
A28: 16
A29: 17
A30: 18
A31: 19
A32: 20

Sheet 年度予算査定書（その他特別利益）
B1: 年度予算査定書 | S1: メインに戻る
M2: 作成日時：
B3: 収入予算の部 | M3: 作成者:
C4: コード | D4: 名称 | H4: 査定事由
B5: 所属
B6: 会計
B7: 款 | D7: 下水道事業収益
B8: 項 | D8: 特別利益
B9: 目 | D9: その他特別利益
C11: ※必須 | I11: ※必須 | J11: ※必須 | M11: ※必須 | N11: ※必須 | O11: ※必須
B12: 番号 | C12: 節 | D12: 細節 | E12: 名称 | I12: 要求額 | J12: 審査額 | K12: 前年度 | L12: 前々年度 | M12: 款 | N12: 項 | O12: 目 | P12: 事業
A13: 1 | C13: その他特別利益 | I13: 1 | J13: 1 | M13: 下水道事業収益 | N13: 特別利益 | O13: その他特別利益
A14: 2
A15: 3
A16: 4
A17: 5
A18: 6
A19: 7
A20: 8
A21: 9
A22: 10
A23: 11
A24: 12
A25: 13
A26: 14
A27: 15
A28: 16
A29: 17
A30: 18
A31: 19
A32: 20

Sheet 年度予算査定書（汚水管きょ費）
B1: 年度予算査定書 | P1: メインに戻る
M2: 作成日時：
B3: 支出予算の部 | M3: 作成者:
C4: コード | D4: 名称 | H4: 事業概要・査定事由
B5: 所属
B6: 会計
B7: 款 | D7: 下水道事業費用
B8: 項 | D8: 営業費用
B9: 目 | D9: 汚水管きょ費
B10: 事業
B12: 財源
B13: コード | C13: 項目 | E13: 金額 | H13: 備考
B18: ※必須 | H18: ※必須
B19: 節 | C19: 細節 | D19: 節名 | H19: 要求額 | I19: 差額 | J19: 前年度 | K19: 前々年度 | L19: 番号 | M19: 内容
A20: 1 | B20: 委託費 | H20: 35000
A21: 2 | B21: 工事請負費 | H21: 23000
A22: 3 | B22: 修繕費 | H22: 15000
A23: 4 | B23: 材料費 | H23: 100
A24: 5
A25: 6
A26: 7
A27: 8
A28: 9
A29: 10
A30: 11
A31: 12
A32: 13
A33: 14
A34: 15
A35: 16
A36: 17
A37: 18
A38: 19
A39: 20

Sheet 年度予算査定書（雨水菅きょ費）
B1: 年度予算査定書 | P1: メインに戻る
M2: 作成日時：
B3: 支出予算の部 | M3: 作成者:
C4: コード | D4: 名称 | H4: 事業概要・査定事由
B5: 所属
B6: 会計
B7: 款 | D7: 下水道事業費用
B8: 項 | D8: 営業費用
B9: 目 | D9: 雨水管きょ費
B10: 事業
B12: 財源
B13: コード | C13: 項目 | E13: 金額 | H13: 備考
B18: ※必須 | H18: ※必須
B19: 節 | C19: 細節 | D19: 節名 | H19: 要求額 | I19: 差額 | J19: 前年度 | K19: 前々年度 | L19: 番号 | M19: 内容
A20: 1 | B20: 旅費 | H20: 10
A21: 2 | B21: 備消耗品費 | H21: 20
A22: 3 | B22: 燃料費 | H22: 350
A23: 4 | B23: 委託料 | H23: 20000
A24: 5 | B24: 通信運搬費 | H24: 1400
A25: 6
A26: 7
A27: 8
A28: 9
A29: 10
A30: 11
A31: 12
A32: 13
A33: 14
A34: 15
A35: 16
A36: 17
A37: 18
A38: 19
A39: 20

Sheet 年度予算査定書（汚水ポンプ場費）
B1: 年度予算査定書 | P1: メインに戻る
M2: 作成日時：
B3: 支出予算の部 | M3: 作成者:
C4: コード | D4: 名称 | H4: 事業概要・査定事由
B5: 所属
B6: 会計
B7: 款 | D7: 下水道事業費用
B8: 項 | D8: 営業費用
B9: 目 | D9: 汚水ポンプ場費
B10: 事業
B12: 財源
B13: コード | C13: 項目 | E13: 金額 | H13: 備考
B18: ※必須 | H18: ※必須
B19: 節 | C19: 細節 | D19: 節名 | H19: 要求額 | I19: 差額 | J19: 前年度 | K19: 前々年度 | L19: 番号 | M19: 内容
A20: 1 | B20: 備消耗品費 | H20: 20
A21: 2 | B21: 燃料費 | H21: 120
A22: 3 | B22: 光熱水費 | H22: 13000
A23: 4 | B23: 通信運搬費 | H23: 500
A24: 5 | B24: 委託料 | H24: 15000
A25: 6 | B25: 修繕費 | H25: 20000
A26: 7 | B26: 保険料 | H26: 50
A27: 8
A28: 9
A29: 10
A30: 11
A31: 12
A32: 13
A33: 14
A34: 15
A35: 16
A36: 17
A37: 18
A38: 19
A39: 20

Sheet 年度予算査定書（雨水ポンプ場費）
B1: 年度予算査定書 | P1: メインに戻る
M2: 作成日時：
B3: 支出予算の部 | M3: 作成者:
C4: コード | D4: 名称 | H4: 事業概要・査定事由
B5: 所属
B6: 会計
B7: 款 | D7: 下水道事業費用
B8: 項 | D8: 営業費用
B9: 目 | D9: 雨水ポンプ場費
B10: 事業
B12: 財源
B13: コード | C13: 項目 | E13: 金額 | H13: 備考
B18: ※必須 | H18: ※必須
B19: 節 | C19: 細節 | D19: 節名 | H19: 要求額 | I19: 差額 | J19: 前年度 | K19: 前々年度 | L19: 番号 | M19: 内容
A20: 1 | B20: 委託料 | H20: 8000
A21: 2 | B21: 賃借料 | H21: 60
A22: 3 | B22: 修繕費 | H22: 3200
A23: 4
A24: 5
A25: 6
A26: 7
A27: 8
A28: 9
A29: 10
A30: 11
A31: 12
A32: 13
A33: 14
A34: 15
A35: 16
A36: 17
A37: 18
A38: 19
A39: 20

Sheet 年度予算査定書（流域下水道維持管理負担金）
B1: 年度予算査定書 | P1: メインに戻る
M2: 作成日時：
B3: 支出予算の部 | M3: 作成者:
C4: コード | D4: 名称 | H4: 事業概要・査定事由
B5: 所属
B6: 会計
B7: 款 | D7: 下水道事業費用
B8: 項 | D8: 営業費用
B9: 目 | D9: 流域下水道維持管理負担金
B10: 事業
B12: 財源
B13: コード | C13: 項目 | E13: 金額 | H13: 備考
B18: ※必須 | H18: ※必須
B19: 節 | C19: 細節 | D19: 節名 | H19: 要求額 | I19: 差額 | J19: 前年度 | K19: 前々年度 | L19: 番号 | M19: 内容
A20: 1 | B20: 流域下水道維持管理負担金 | H20: 800000
A21: 2
A22: 3
A23: 4
A24: 5
A25: 6
A26: 7
A27: 8
A28: 9
A29: 10
A30: 11
A31: 12
A32: 13
A33: 14
A34: 15
A35: 16
A36: 17
A37: 18
A38: 19
A39: 20

Sheet 年度予算査定書（業務費）
B1: 年度予算査定書 | P1: メインに戻る
M2: 作成日時：
B3: 支出予算の部 | M3: 作成者:
C4: コード | D4: 名称 | H4: 事業概要・査定事由
B5: 所属
B6: 会計
B7: 款 | D7: 下水道事業費用
B8: 項 | D8: 営業費用
B9: 目 | D9: 業務費
B10: 事業
B12: 財源
B13: コード | C13: 項目 | E13: 金額 | H13: 備考
B18: ※必須 | H18: ※必須
B19: 節 | C19: 細節 | D19: 節名 | H19: 要求額 | I19: 差額 | J19: 前年度 | K19: 前々年度 | L19: 番号 | M19: 内容
A20: 1 | B20: 報償費 | H20: 1500
A21: 2 | B21: 印刷製本費 | H21: 150
A22: 3 | B22: 通信運搬費 | H22: 300
A23: 4 | B23: 委託料 | H23: 150000
A24: 5 | B24: 補償、補てん及び賠償金 | H24: 10
A25: 6 | B25: 負担金 | H25: 2000
A26: 7 | B26: 補助金 | H26: 120
A27: 8 | B27: 貸付金 | H27: 6000
A28: 9 | B28: 雑費 | H28: 200
A29: 10
A30: 11
A31: 12
A32: 13
A33: 14
A34: 15
A35: 16
A36: 17
A37: 18
A38: 19
A39: 20

Sheet 年度予算査定書（総係費）
B1: 年度予算査定書 | P1: メインに戻る
M2: 作成日時：
B3: 支出予算の部 | M3: 作成者:
C4: コード | D4: 名称 | H4: 事業概要・査定事由
B5: 所属
B6: 会計
B7: 款 | D7: 下水道事業費用
B8: 項 | D8: 営業費用
B9: 目 | D9: 総係費
B10: 事業
B12: 財源
B13: コード | C13: 項目 | E13: 金額 | H13: 備考
B18: ※必須 | H18: ※必須
B19: 節 | C19: 細節 | D19: 節名 | H19: 要求額 | I19: 差額 | J19: 前年度 | K19: 前々年度 | L19: 番号 | M19: 内容
A20: 1 | B20: 給料 | H20: 40000
A21: 2 | B21: 職員手当等 | H21: 15000
A22: 3 | B22: 法定福利費 | H22: 10000
A23: 4 | B23: 退職給付費 | H23: 500
A24: 5 | B24: 旅費 | H24: 40
A25: 6 | B25: 被服費 | H25: 30
A26: 7 | B26: 備消耗品費 | H26: 1900
A27: 8 | B27: 燃料費 | H27: 200
A28: 9 | B28: 印刷製本費 | H28: 600
A29: 10 | B29: 委託料 | H29: 50000
A30: 11 | B30: 手数料 | H30: 30
A31: 12 | B31: 賃借料 | H31: 900
A32: 13 | B32: 修繕費 | H32: 300
A33: 14 | B33: 公課費 | H33: 30
A34: 15 | B34: 負担金 | H34: 6000
A35: 16 | B35: 賞与引当金繰入額 | H35: 5000
A36: 17 | B36: 貸倒引当金繰入額 | H36: 683
A37: 18 | B37: 退職給付引当金繰入額 | H37: 2000
A38: 19
A39: 20

Sheet 年度予算査定書（減価償却費）
B1: 年度予算査定書 | P1: メインに戻る
M2: 作成日時：
B3: 支出予算の部 | M3: 作成者:
C4: コード | D4: 名称 | H4: 事業概要・査定事由
B5: 所属
B6: 会計
B7: 款 | D7: 下水道事業費用
B8: 項 | D8: 営業費用
B9: 目 | D9: 減価償却費
B10: 事業
B12: 財源
B13: コード | C13: 項目 | E13: 金額 | H13: 備考
B18: ※必須 | H18: ※必須
B19: 節 | C19: 細節 | D19: 節名 | H19: 要求額 | I19: 差額 | J19: 前年度 | K19: 前々年度 | L19: 番号 | M19: 内容
A20: 1 | B20: 有形固定資産減価償却費 | H20: 2017784
A21: 2 | B21: 無形固定資産減価償却費 | H21: 196124
A22: 3
A23: 4
A24: 5
A25: 6
A26: 7
A27: 8
A28: 9
A29: 10
A30: 11
A31: 12
A32: 13
A33: 14
A34: 15
A35: 16
A36: 17
A37: 18
A38: 19
A39: 20

Sheet 年度予算査定書（支払利息）
B1: 年度予算査定書 | P1: メインに戻る
M2: 作成日時：
B3: 支出予算の部 | M3: 作成者:
C4: コード | D4: 名称 | H4: 事業概要・査定事由
B5: 所属
B6: 会計
B7: 款 | D7: 下水道事業費用
B8: 項 | D8: 営業外費用
B9: 目 | D9: 支払利息
B10: 事業
B12: 財源
B13: コード | C13: 項目 | E13: 金額 | H13: 備考
B18: ※必須 | H18: ※必須
B19: 節 | C19: 細節 | D19: 節名 | H19: 要求額 | I19: 差額 | J19: 前年度 | K19: 前々年度 | L19: 番号 | M19: 内容
A20: 1 | B20: 企業債利息 | H20: 1080000
A21: 2
A22: 3
A23: 4
A24: 5
A25: 6
A26: 7
A27: 8
A28: 9
A29: 10
A30: 11
A31: 12
A32: 13
A33: 14
A34: 15
A35: 16
A36: 17
A37: 18
A38: 19
A39: 20

Sheet 年度予算査定書（消費税及び地方消費税）
B1: 年度予算査定書 | P1: メインに戻る
M2: 作成日時：
B3: 支出予算の部 | M3: 作成者:
C4: コード | D4: 名称 | H4: 事業概要・査定事由
B5: 所属
B6: 会計
B7: 款 | D7: 下水道事業費用
B8: 項 | D8: 営業外費用
B9: 目 | D9: 消費税及び地方消費税
B10: 事業
B12: 財源
B13: コード | C13: 項目 | E13: 金額 | H13: 備考
B18: ※必須 | H18: ※必須
B19: 節 | C19: 細節 | D19: 節名 | H19: 要求額 | I19: 差額 | J19: 前年度 | K19: 前々年度 | L19: 番号 | M19: 内容
A20: 1 | B20: 消費税及び地方消費税 | H20: 70000
A21: 2
A22: 3
A23: 4
A24: 5
A25: 6
A26: 7
A27: 8
A28: 9
A29: 10
A30: 11
A31: 12
A32: 13
A33: 14
A34: 15
A35: 16
A36: 17
A37: 18
A38: 19
A39: 20

Sheet 年度予算査定書（支払利息２）
B1: 年度予算査定書 | P1: メインに戻る
M2: 作成日時：
B3: 支出予算の部 | M3: 作成者:
C4: コード | D4: 名称 | H4: 事業概要・査定事由
B5: 所属
B6: 会計
B7: 款 | D7: 下水道事業費用
B8: 項 | D8: 特別損失
B9: 目 | D9: 支払利息
B10: 事業
B12: 財源
B13: コード | C13: 項目 | E13: 金額 | H13: 備考
B18: ※必須 | H18: ※必須
B19: 節 | C19: 細節 | D19: 節名 | H19: 要求額 | I19: 差額 | J19: 前年度 | K19: 前々年度 | L19: 番号 | M19: 内容
A20: 1 | B20: 企業債利息 | H20: 5000
A21: 2
A22: 3
A23: 4
A24: 5
A25: 6
A26: 7
A27: 8
A28: 9
A29: 10
A30: 11
A31: 12
A32: 13
A33: 14
A34: 15
A35: 16
A36: 17
A37: 18
A38: 19
A39: 20

Sheet 年度予算査定書（予備費）
B1: 年度予算査定書 | P1: メインに戻る
M2: 作成日時：
B3: 支出予算の部 | M3: 作成者:
C4: コード | D4: 名称 | H4: 事業概要・査定事由
B5: 所属
B6: 会計
B7: 款 | D7: 下水道事業費用
B8: 項 | D8: 予備費
B9: 目 | D9: 予備費
B10: 事業
B12: 財源
B13: コード | C13: 項目 | E13: 金額 | H13: 備考
B19: 節 | C19: 細節 | D19: 節名 | H19: 要求額 | I19: 差額 | J19: 前年度 | K19: 前々年度 | L19: 番号 | M19: 内容
A20: 1 | B20: 予備費 | H20: 1000
A21: 2
A22: 3
A23: 4
A24: 5
A25: 6
A26: 7
A27: 8
A28: 9
A29: 10
A30: 11
A31: 12
A32: 13
A33: 14
A34: 15
A35: 16
A36: 17
A37: 18
A38: 19
A39: 20

Sheet 年度予算査定書（企業債）
B1: 年度予算査定書 | S1: メインに戻る
M2: 作成日時：
B3: 収入予算の部 | M3: 作成者:
C4: コード | D4: 名称 | H4: 査定事由
B5: 所属
B6: 会計
B7: 款 | D7: 資本的収入
B8: 項 | D8: 企業債
B9: 目 | D9: 企業債
C11: ※必須 | I11: ※必須 | J11: ※必須 | M11: ※必須 | N11: ※必須 | O11: ※必須
B12: 番号 | C12: 節 | D12: 細節 | E12: 名称 | I12: 要求額 | J12: 審査額 | K12: 前年度 | L12: 前々年度 | M12: 款 | N12: 項 | O12: 目 | P12: 事業
A13: 1 | C13: 企業債 | I13: 1105000 | J13: 1105000 | M13: 資本的収入 | N13: 企業債 | O13: 企業債
A14: 2
A15: 3
A16: 4
A17: 5
A18: 6
A19: 7
A20: 8
A21: 9
A22: 10
A23: 11
A24: 12
A25: 13
A26: 14
A27: 15
A28: 16
A29: 17
A30: 18
A31: 19
A32: 20

Sheet 年度予算査定書（他会計出資金）
B1: 年度予算査定書 | S1: メインに戻る
M2: 作成日時：
B3: 収入予算の部 | M3: 作成者:
C4: コード | D4: 名称 | H4: 査定事由
B5: 所属
B6: 会計
B7: 款 | D7: 資本的収入
B8: 項 | D8: 出資金
B9: 目 | D9: 他会計出資金
C11: ※必須 | I11: ※必須 | J11: ※必須 | M11: ※必須 | N11: ※必須 | O11: ※必須
B12: 番号 | C12: 節 | D12: 細節 | E12: 名称 | I12: 要求額 | J12: 審査額 | K12: 前年度 | L12: 前々年度 | M12: 款 | N12: 項 | O12: 目 | P12: 事業
A13: 1 | C13: 一般会計出資金 | I13: 0 | J13: 0 | M13: 資本的収入 | N13: 出資金 | O13: 他会計出資金
A14: 2
A15: 3
A16: 4
A17: 5
A18: 6
A19: 7
A20: 8
A21: 9
A22: 10
A23: 11
A24: 12
A25: 13
A26: 14
A27: 15
A28: 16
A29: 17
A30: 18
A31: 19
A32: 20

Sheet 年度予算査定書（受益者負担金）
B1: 年度予算査定書 | S1: メインに戻る
M2: 作成日時：
B3: 収入予算の部 | M3: 作成者:
C4: コード | D4: 名称 | H4: 査定事由
B5: 所属
B6: 会計
B7: 款 | D7: 資本的収入
B8: 項 | D8: 負担金
B9: 目 | D9: 受益者負担金
C11: ※必須 | I11: ※必須 | J11: ※必須 | M11: ※必須 | N11: ※必須 | O11: ※必須
B12: 番号 | C12: 節 | D12: 細節 | E12: 名称 | I12: 要求額 | J12: 審査額 | K12: 前年度 | L12: 前々年度 | M12: 款 | N12: 項 | O12: 目 | P12: 事業
A13: 1 | C13: 受益者負担金 | I13: 56000 | J13: 56000 | M13: 資本的収入 | N13: 負担金 | O13: 受益者負担金
A14: 2
A15: 3
A16: 4
A17: 5
A18: 6
A19: 7
A20: 8
A21: 9
A22: 10
A23: 11
A24: 12
A25: 13
A26: 14
A27: 15
A28: 16
A29: 17
A30: 18
A31: 19
A32: 20

Sheet 年度予算査定書（国庫補助金)
B1: 年度予算査定書 | S1: メインに戻る
M2: 作成日時：
B3: 収入予算の部 | M3: 作成者:
C4: コード | D4: 名称 | H4: 査定事由
B5: 所属
B6: 会計
B7: 款 | D7: 資本的収入
B8: 項 | D8: 補助金
B9: 目 | D9: 国庫補助金
C11: ※必須 | I11: ※必須 | J11: ※必須 | M11: ※必須 | N11: ※必須 | O11: ※必須
B12: 番号 | C12: 節 | D12: 細節 | E12: 名称 | I12: 要求額 | J12: 審査額 | K12: 前年度 | L12: 前々年度 | M12: 款 | N12: 項 | O12: 目 | P12: 事業
A13: 1 | C13: 国庫補助金 | I13: 300000 | J13: 300000 | M13: 資本的収入 | N13: 補助金 | O13: 国庫補助金
A14: 2
A15: 3
A16: 4
A17: 5
A18: 6
A19: 7
A20: 8
A21: 9
A22: 10
A23: 11
A24: 12
A25: 13
A26: 14
A27: 15
A28: 16
A29: 17
A30: 18
A31: 19
A32: 20

Sheet 年度予算査定書（他会計補助金２）
B1: 年度予算査定書 | S1: メインに戻る
M2: 作成日時：
B3: 収入予算の部 | M3: 作成者:
C4: コード | D4: 名称 | H4: 査定事由
B5: 所属
B6: 会計
B7: 款 | D7: 資本的収入
B8: 項 | D8: 補助金
B9: 目 | D9: 他会計補助金
C11: ※必須 | I11: ※必須 | J11: ※必須 | M11: ※必須 | N11: ※必須 | O11: ※必須
B12: 番号 | C12: 節 | D12: 細節 | E12: 名称 | I12: 要求額 | J12: 審査額 | K12: 前年度 | L12: 前々年度 | M12: 款 | N12: 項 | O12: 目 | P12: 事業
A13: 1 | C13: 一般会計補助金 | I13: 570000 | J13: 570000 | M13: 資本的収入 | N13: 補助金 | O13: 他会計補助金
A14: 2
A15: 3
A16: 4
A17: 5
A18: 6
A19: 7
A20: 8
A21: 9
A22: 10
A23: 11
A24: 12
A25: 13
A26: 14
A27: 15
A28: 16
A29: 17
A30: 18
A31: 19
A32: 20

Sheet 年度予算査定書（汚水管きょ建設費）
B1: 年度予算査定書 | P1: メインに戻る
M2: 作成日時：
B3: 支出予算の部 | M3: 作成者:
C4: コード | D4: 名称 | H4: 事業概要・査定事由
B5: 所属
B6: 会計
B7: 款 | D7: 資本的支出
B8: 項 | D8: 建設改良費
B9: 目 | D9: 汚水管きょ建設費
B10: 事業
B12: 財源
B13: コード | C13: 項目 | E13: 金額 | H13: 備考
B18: ※必須 | H18: ※必須 | I18: ※必須
B19: 節 | C19: 細節 | D19: 節名 | H19: 要求額 | I19: 差額 | J19: 前年度 | K19: 前々年度 | L19: 番号 | M19: 内容
A20: 1 | B20: 給料 | H20: 17000 | I20: 17000
A21: 2 | B21: 職員手当等 | H21: 9000 | I21: 9000
A22: 3 | B22: 委託料 | H22: 150000 | I22: 150000
A23: 4 | B23: 工事請負費 | H23: 600000 | I23: 600000
A24: 5 | B24: 補償、補てん及び | H24: 9000 | I24: 9000
A25: 6
A26: 7
A27: 8
A28: 9
A29: 10
A30: 11
A31: 12
A32: 13
A33: 14
A34: 15
A35: 16
A36: 17
A37: 18
A38: 19
A39: 20

Sheet 年度予算査定書（汚水ポンプ場建設費）
B1: 年度予算査定書 | P1: メインに戻る
M2: 作成日時：
B3: 支出予算の部 | M3: 作成者:
C4: コード | D4: 名称 | H4: 事業概要・査定事由
B5: 所属
B6: 会計
B7: 款 | D7: 資本的支出
B8: 項 | D8: 建設改良費
B9: 目 | D9: 汚水ポンプ場建設費
B10: 事業
B12: 財源
B13: コード | C13: 項目 | E13: 金額 | H13: 備考
B18: ※必須 | H18: ※必須 | I18: ※必須
B19: 節 | C19: 細節 | D19: 節名 | H19: 要求額 | I19: 差額 | J19: 前年度 | K19: 前々年度 | L19: 番号 | M19: 内容
A20: 1 | B20: 工事請負費 | H20: 15000 | I20: 15000
A21: 2
A22: 3
A23: 4
A24: 5
A25: 6
A26: 7
A27: 8
A28: 9
A29: 10
A30: 11
A31: 12
A32: 13
A33: 14
A34: 15
A35: 16
A36: 17
A37: 18
A38: 19
A39: 20

Sheet 年度予算査定書（雨水ポンプ場建設費）
B1: 年度予算査定書 | P1: メインに戻る
M2: 作成日時：
B3: 支出予算の部 | M3: 作成者:
C4: コード | D4: 名称 | H4: 事業概要・査定事由
B5: 所属
B6: 会計
B7: 款 | D7: 資本的支出
B8: 項 | D8: 建設改良費
B9: 目 | D9: 雨水ポンプ場建設費
B10: 事業
B12: 財源
B13: コード | C13: 項目 | E13: 金額 | H13: 備考
B18: ※必須 | H18: ※必須 | I18: ※必須
B19: 節 | C19: 細節 | D19: 節名 | H19: 要求額 | I19: 差額 | J19: 前年度 | K19: 前々年度 | L19: 番号 | M19: 内容
A20: 1 | B20: 工事請負費 | H20: 15000 | I20: 15000
A21: 2
A22: 3
A23: 4
A24: 5
A25: 6
A26: 7
A27: 8
A28: 9
A29: 10
A30: 11
A31: 12
A32: 13
A33: 14
A34: 15
A35: 16
A36: 17
A37: 18
A38: 19
A39: 20

Sheet 年度予算査定書（流域下水道維持管理負担金２）
B1: 年度予算査定書 | P1: メインに戻る
M2: 作成日時：
B3: 支出予算の部 | M3: 作成者:
C4: コード | D4: 名称 | H4: 事業概要・査定事由
B5: 所属
B6: 会計
B7: 款 | D7: 資本的支出
B8: 項 | D8: 建設改良費
B9: 目 | D9: 流域下水道建設負担金
B10: 事業
B12: 財源
B13: コード | C13: 項目 | E13: 金額 | H13: 備考
B18: ※必須 | H18: ※必須 | I18: ※必須
B19: 節 | C19: 細節 | D19: 節名 | H19: 要求額 | I19: 差額 | J19: 前年度 | K19: 前々年度 | L19: 番号 | M19: 内容
A20: 1 | B20: 流域下水道建設負担金 | H20: 150000 | I20: 150000
A21: 2
A22: 3
A23: 4
A24: 5
A25: 6
A26: 7
A27: 8
A28: 9
A29: 10
A30: 11
A31: 12
A32: 13
A33: 14
A34: 15
A35: 16
A36: 17
A37: 18
A38: 19
A39: 20

Sheet 年度予算査定書（企業債償還金）
B1: 年度予算査定書 | P1: メインに戻る
M2: 作成日時：
B3: 支出予算の部 | M3: 作成者:
C4: コード | D4: 名称 | H4: 事業概要・査定事由
B5: 所属
B6: 会計
B7: 款 | D7: 資本的支出
B8: 項 | D8: 企業債償還金
B9: 目 | D9: 企業債償還金
B10: 事業
B12: 財源
B13: コード | C13: 項目 | E13: 金額 | H13: 備考
B18: ※必須 | H18: ※必須 | I18: ※必須
B19: 節 | C19: 細節 | D19: 節名 | H19: 要求額 | I19: 差額 | J19: 前年度 | K19: 前々年度 | L19: 番号 | M19: 内容
A20: 1 | B20: 企業債償還金 | H20: 2630000 | I20: 263000
A21: 2
A22: 3
A23: 4
A24: 5
A25: 6
A26: 7
A27: 8
A28: 9
A29: 10
A30: 11
A31: 12
A32: 13
A33: 14
A34: 15
A35: 16
A36: 17
A37: 18
A38: 19
A39: 20
